fUSD/lending_fUSD_20251027
["ID","MTS","AMOUNT","RATE_DAILY","PERIOD"]
[392474284,1761535834512,-151.0,0.00044258,120]
[392474285,1761535834522,-500.0,0.00044258,120]
[392474286,1761535834533,-207.22155124,0.00044258,120]
[392474287,1761535834544,-504.35688456,0.00044258,120]
[392474288,1761535834556,-500.0,0.00044258,30]
[392474289,1761535834567,-500.0,0.00044258,30]
[392474290,1761535834577,-500.0,0.00044258,120]
[392474291,1761535834587,-500.0,0.00044258,120]
[392474292,1761535834597,-194.07294413,0.00044258,120]
[392474293,1761535834613,-500.0,0.00044258,120]
[392474294,1761535834628,-500.0,0.00044258,120]
[392474295,1761535834638,-282.527133,0.00044258,120]
[392474296,1761535834650,-659.56,0.00044258,120]
[392474297,1761535834661,-151.0,0.00044258,30]
[392474298,1761535834671,-500.0,0.00044258,14]
[392474299,1761535834682,-595.14177866,0.00044258,120]
[392474300,1761535834692,-153.658433,0.00044258,120]
[392474301,1761535834703,-214.783954,0.00044258,120]
[392474302,1761535834714,-558.33,0.00044258,120]
[392474303,1761535834726,-500.0,0.00044258,120]
[392474304,1761535834736,-10786.48263017,0.00044259,44]
[392474305,1761535834747,-151.0,0.00044259,120]
[392474306,1761535834757,-239.03441,0.00044259,120]
[392474307,1761535834767,-417.582,0.00044259,30]
[392474308,1761535834777,-151.0,0.00044259,120]
[392474309,1761535834787,-228.145056,0.00044259,30]
[392474310,1761535834797,-172539.418686,0.00044259,3]
[392474311,1761535834807,-2605.4409272,0.00044259,3]
[392474312,1761535834818,-151.24889663,0.00044259,7]
[392474313,1761535834828,-151.24889663,0.00044259,7]
[392474314,1761535834839,-156.23993669,0.00044264,28]
[392474315,1761535834850,-500.0,0.00044267,2]
[392474316,1761535834861,-500.0,0.00044267,120]
[392474317,1761535834872,-500.0,0.00044267,120]
[392474318,1761535834883,-200.0,0.00044267,7]
[392474319,1761535834895,-500.0,0.00044267,120]
[392474320,1761535834905,-500.0,0.00044267,120]
[392474321,1761535834915,-500.0,0.00044267,120]
[392474322,1761535834926,-500.0,0.00044267,2]
[392474323,1761535834936,-188.83205282,0.00044267,120]
[392474324,1761535834947,-500.0,0.00044267,120]
[392474325,1761535834957,-500.0,0.00044267,120]
[392474326,1761535834968,-500.0,0.00044267,120]
[392474327,1761535834979,-500.0,0.00044267,120]
[392474328,1761535834989,-500.0,0.00044267,120]
[392474329,1761535834999,-500.0,0.00044267,120]
[392474330,1761535835010,-351.44039246,0.00044267,120]
[392474331,1761535835020,-531.49655204,0.00044267,120]
[392474332,1761535835031,-500.0,0.00044267,120]
[392474333,1761535835042,-500.0,0.00044267,120]
[392474334,1761535835052,-500.0,0.00044267,120]
[392474335,1761535835062,-500.0,0.00044267,120]
[392474336,1761535835072,-300.0,0.00044267,120]
[392474337,1761535835082,-500.0,0.00044267,2]
[392474338,1761535835093,-500.0,0.00044267,120]
[392474339,1761535835103,-500.0,0.00044267,120]
[392474340,1761535835114,-500.0,0.00044267,120]
[392474341,1761535835124,-500.0,0.00044267,120]
[392474342,1761535835135,-500.0,0.00044267,30]
[392474343,1761535835146,-443.05798628,0.00044267,120]
[392474344,1761535835156,-500.0,0.00044267,120]
[392474345,1761535835167,-500.0,0.00044267,120]
[392474346,1761535835178,-4020.29,0.00044267,120]
[392474347,1761535835189,-659.56,0.00044267,120]
[392474348,1761535835199,-647.94166645,0.00044267,120]
[392474349,1761535835210,-469.29025179,0.00044267,120]
[392474350,1761535835220,-500.0,0.00044267,120]
[392474351,1761535835231,-500.0,0.00044267,120]
[392474352,1761535835241,-500.0,0.00044267,14]
[392474353,1761535835251,-1049.07,0.00044267,120]
[392474354,1761535835261,-10000.0,0.00044267,120]
[392474355,1761535835272,-1083.08894538,0.00044267,120]
[392474356,1761535835283,-1789.65,0.00044267,2]
[392474357,1761535835293,-558.33,0.00044267,120]
[392474358,1761535835303,-500.0,0.00044267,120]
[392474359,1761535835314,-500.0,0.00044267,120]
[392474360,1761535835324,-696.43,0.00044267,120]
[392474361,1761535835335,-272.0,0.00044268,7]
[392474362,1761535835346,-299.75396226,0.00044268,2]
[392474363,1761535835356,-500.0,0.00044268,120]
[392474364,1761535835366,-273.37268793,0.00044268,120]
[392474365,1761535835376,-500.0,0.00044268,120]
[392474366,1761535835387,-151.0,0.00044268,120]
[392474367,1761535835397,-151.0,0.00044268,120]
[392474368,1761535835407,-500.0,0.00044268,120]
[392474369,1761535835417,-500.0,0.00044268,120]
[392474370,1761535835427,-500.0,0.00044268,120]
[392474371,1761535835437,-500.0,0.00044268,120]
[392474372,1761535835447,-188.94983905,0.00044268,120]
[392474373,1761535835457,-500.0,0.00044268,120]
[392474374,1761535835467,-603.54576339,0.00044268,120]
[392474375,1761535835476,-500.0,0.00044268,2]
[392474376,1761535835486,-500.0,0.00044268,2]
[392474377,1761535835496,-500.0,0.00044268,2]
[392474378,1761535835507,-549.51173431,0.00044268,2]
[392474379,1761535835516,-500.0,0.00044268,120]
[392474380,1761535835526,-500.0,0.00044268,120]
[392474381,1761535835536,-500.0,0.00044268,120]
[392474382,1761535835546,-500.0,0.00044268,120]
[392474383,1761535835558,-500.0,0.00044268,120]
[392474384,1761535835568,-500.0,0.00044268,120]
[392474385,1761535835579,-500.0,0.00044268,120]
[392474386,1761535835589,-500.0,0.00044268,120]
[392474387,1761535835599,-500.0,0.00044268,120]
[392474388,1761535835609,-500.0,0.00044268,120]
[392474389,1761535835620,-500.0,0.00044268,120]
[392474390,1761535835630,-500.0,0.00044268,120]
[392474391,1761535835640,-500.0,0.00044268,120]
[392474392,1761535835650,-231.52261447,0.00044268,120]
[392474393,1761535835660,-500.0,0.00044268,120]
[392474394,1761535835671,-500.0,0.00044268,120]
[392474395,1761535835681,-500.0,0.00044268,120]
[392474396,1761535835692,-500.0,0.00044268,120]
[392474397,1761535835702,-500.0,0.00044268,120]
[392474398,1761535835713,-500.0,0.00044268,120]
[392474399,1761535835723,-500.0,0.00044268,120]
[392474400,1761535835732,-500.0,0.00044268,120]
[392474401,1761535835742,-500.0,0.00044268,120]
[392474402,1761535835752,-500.0,0.00044268,120]
[392474403,1761535835762,-500.0,0.00044268,120]
[392474404,1761535835772,-500.0,0.00044268,120]
[392474405,1761535835781,-500.0,0.00044268,120]
[392474406,1761535835791,-500.0,0.00044268,120]
[392474407,1761535835801,-500.0,0.00044268,120]
[392474408,1761535835811,-500.0,0.00044268,120]
[392474409,1761535835821,-500.0,0.00044268,120]
[392474410,1761535835831,-500.0,0.00044268,120]
[392474411,1761535835842,-500.0,0.00044268,120]
[392474412,1761535835854,-433.48465307,0.00044268,120]
[392474413,1761535835868,-500.0,0.00044268,120]
[392474414,1761535835878,-500.0,0.00044268,120]
[392474415,1761535835888,-500.0,0.00044268,120]
[392474416,1761535835898,-500.0,0.00044268,120]
[392474417,1761535835908,-500.0,0.00044268,120]
[392474418,1761535835918,-500.0,0.00044268,120]
[392474419,1761535835928,-500.0,0.00044268,120]
[392474420,1761535835940,-500.0,0.00044268,120]
[392474421,1761535835950,-224.55292852,0.00044268,120]
[392474422,1761535835961,-500.0,0.00044268,120]
[392474423,1761535835971,-500.0,0.00044268,120]
[392474424,1761535835982,-500.0,0.00044268,120]
[392474425,1761535835993,-500.0,0.00044268,120]
[392474426,1761535836003,-500.0,0.00044268,120]
[392474427,1761535836013,-500.0,0.00044268,120]
[392474428,1761535836024,-500.0,0.00044268,120]
[392474429,1761535836033,-396.00967769,0.00044268,120]
[392474430,1761535836043,-500.0,0.00044268,120]
[392474431,1761535836053,-500.0,0.00044268,120]
[392474432,1761535836063,-500.0,0.00044268,120]
[392474433,1761535836073,-500.0,0.00044268,120]
[392474434,1761535836083,-500.0,0.00044268,120]
[392474435,1761535836093,-500.0,0.00044268,120]
[392474436,1761535836104,-500.0,0.00044268,120]
[392474437,1761535836114,-203.69778392,0.00044268,120]
[392474438,1761535836124,-490.99060195,0.00044268,120]
[392474439,1761535836136,-500.0,0.00044268,120]
[392474440,1761535836145,-500.0,0.00044268,120]
[392474441,1761535836155,-442.49645325,0.00044268,120]
[392474442,1761535836166,-500.0,0.00044268,120]
[392474443,1761535836176,-500.0,0.00044268,120]
[392474444,1761535836186,-500.0,0.00044268,120]
[392474445,1761535836196,-500.0,0.00044268,120]
[392474446,1761535836206,-513.28021302,0.00044268,120]
[392474447,1761535836217,-300.0,0.00044268,120]
[392474448,1761535836227,-300.0,0.00044268,120]
[392474449,1761535836237,-300.0,0.00044268,120]
[392474450,1761535836246,-300.0,0.00044268,120]
[392474451,1761535836256,-300.0,0.00044268,120]
[392474452,1761535836265,-300.0,0.00044268,120]
[392474453,1761535836275,-300.0,0.00044268,120]
[392474454,1761535836285,-300.0,0.00044268,120]
[392474455,1761535836295,-300.0,0.00044268,120]
[392474456,1761535836306,-405.26363801,0.00044268,120]
[392474457,1761535836317,-500.0,0.00044268,2]
[392474458,1761535836328,-500.0,0.00044268,2]
[392474459,1761535836339,-500.0,0.00044268,2]
[392474460,1761535836349,-500.0,0.00044268,2]
[392474461,1761535836360,-500.0,0.00044268,2]
[392474462,1761535836370,-500.0,0.00044268,2]
[392474463,1761535836380,-500.0,0.00044268,2]
[392474464,1761535836390,-500.0,0.00044268,2]
[392474465,1761535836400,-500.0,0.00044268,2]
[392474466,1761535836411,-500.0,0.00044268,2]
[392474467,1761535836422,-500.0,0.00044268,2]
[392474468,1761535836434,-265.50199929,0.00044268,2]
[392474469,1761535836444,-500.0,0.00044268,120]
[392474470,1761535836455,-419.97647294,0.00044268,120]
[392474471,1761535836465,-527.8014012,0.00044268,120]
[392474472,1761535836476,-201.59960018,0.00044268,120]
[392474473,1761535836486,-500.0,0.00044268,120]
[392474474,1761535836498,-187.54886985,0.00044268,120]
[392474475,1761535836508,-500.0,0.00044268,30]
[392474476,1761535836519,-513.48690694,0.00044268,30]
[392474477,1761535836530,-522.12011615,0.00044268,120]
[392474478,1761535836540,-162.30863884,0.00044268,120]
[392474479,1761535836550,-500.0,0.00044268,120]
[392474480,1761535836560,-181.6804273,0.00044268,120]
[392474481,1761535836571,-4020.29,0.00044268,120]
[392474482,1761535836582,-4020.29,0.00044268,120]
[392474483,1761535836592,-4020.29,0.00044268,120]
[392474484,1761535836603,-4020.29,0.00044268,120]
[392474485,1761535836614,-4020.29,0.00044268,120]
[392474486,1761535836626,-4020.29,0.00044268,120]
[392474487,1761535836636,-4020.29,0.00044268,120]
[392474488,1761535836646,-4020.29,0.00044268,120]
[392474489,1761535836657,-4020.29,0.00044268,120]
[392474490,1761535836667,-4020.29,0.00044268,120]
[392474491,1761535836676,-4020.29,0.00044268,120]
[392474492,1761535836687,-4020.29,0.00044268,120]
[392474493,1761535836698,-4020.29,0.00044268,120]
[392474494,1761535836708,-4020.29,0.00044268,120]
[392474495,1761535836719,-4020.29,0.00044268,120]
[392474496,1761535836729,-4020.29,0.00044268,120]
[392474497,1761535836739,-4020.29,0.00044268,120]
[392474498,1761535836749,-4020.29,0.00044268,120]
[392474499,1761535836759,-4020.29,0.00044268,120]
[392474500,1761535836769,-4020.29,0.00044268,120]
[392474501,1761535836779,-4020.29,0.00044268,120]
[392474502,1761535836789,-4020.33767464,0.00044268,120]
[392474503,1761535836799,-659.56,0.00044268,120]
[392474504,1761535836809,-659.56,0.00044268,120]
[392474505,1761535836819,-659.56,0.00044268,120]
[392474506,1761535836829,-659.56,0.00044268,120]
[392474507,1761535836839,-659.56,0.00044268,120]
[392474508,1761535836849,-659.56,0.00044268,120]
[392474509,1761535836865,-659.56,0.00044268,120]
[392474510,1761535836875,-659.56,0.00044268,120]
[392474511,1761535836885,-659.56,0.00044268,120]
[392474512,1761535836895,-659.56,0.00044268,120]
[392474513,1761535836905,-659.56,0.00044268,120]
[392474514,1761535836915,-659.56,0.00044268,120]
[392474515,1761535836926,-659.56,0.00044268,120]
[392474516,1761535836936,-659.56,0.00044268,120]
[392474517,1761535836946,-659.56,0.00044268,120]
[392474518,1761535836957,-659.56,0.00044268,120]
[392474519,1761535836967,-659.56,0.00044268,120]
[392474520,1761535836978,-659.56,0.00044268,120]
[392474521,1761535836989,-659.56,0.00044268,120]
[392474522,1761535837000,-659.62030088,0.00044268,120]
[392474523,1761535837011,-500.0,0.00044268,120]
[392474524,1761535837020,-307.79928119,0.00044268,120]
[392474525,1761535837031,-500.0,0.00044268,120]
[392474526,1761535837040,-500.0,0.00044268,14]
[392474527,1761535837050,-500.0,0.00044268,14]
[392474528,1761535837060,-500.0,0.00044268,14]
[392474529,1761535837070,-500.0,0.00044268,14]
[392474530,1761535837080,-500.0,0.00044268,14]
[392474531,1761535837091,-500.0,0.00044268,14]
[392474532,1761535837101,-500.0,0.00044268,14]
[392474533,1761535837111,-239.6,0.00044268,14]
[392474534,1761535837124,-674.4960351,0.00044268,30]
[392474535,1761535837135,-1049.07,0.00044268,120]
[392474536,1761535837145,-1049.07,0.00044268,120]
[392474537,1761535837155,-1049.07,0.00044268,120]
[392474538,1761535837164,-1049.07,0.00044268,120]
[392474539,1761535837174,-1049.07,0.00044268,120]
[392474540,1761535837184,-1049.07,0.00044268,120]
[392474541,1761535837194,-1049.07,0.00044268,120]
[392474542,1761535837204,-1049.07,0.00044268,120]
[392474543,1761535837214,-1049.07,0.00044268,120]
[392474544,1761535837224,-1049.07,0.00044268,120]
[392474545,1761535837234,-1049.07,0.00044268,120]
[392474546,1761535837244,-1049.07,0.00044268,120]
[392474547,1761535837254,-1049.07,0.00044268,120]
[392474548,1761535837264,-1049.07,0.00044268,120]
[392474549,1761535837274,-1049.07,0.00044268,120]
[392474550,1761535837283,-1049.07,0.00044268,120]
[392474551,1761535837294,-1049.07,0.00044268,120]
[392474552,1761535837303,-1049.07,0.00044268,120]
[392474553,1761535837314,-1049.07,0.00044268,120]
[392474554,1761535837324,-1049.07,0.00044268,120]
[392474555,1761535837335,-1049.07,0.00044268,120]
[392474556,1761535837345,-1049.30007869,0.00044268,120]
[392474557,1761535837356,-1789.65,0.00044268,2]
[392474558,1761535837366,-1789.65,0.00044268,2]
[392474559,1761535837376,-1789.65,0.00044268,2]
[392474560,1761535837385,-1789.65,0.00044268,2]
[392474561,1761535837396,-1789.65,0.00044268,2]
[392474562,1761535837407,-1789.65,0.00044268,2]
[392474563,1761535837418,-1789.65,0.00044268,2]
[392474564,1761535837428,-1789.65,0.00044268,2]
[392474565,1761535837438,-1789.65,0.00044268,2]
[392474566,1761535837450,-1789.65,0.00044268,2]
[392474567,1761535837463,-1789.65,0.00044268,2]
[392474568,1761535837474,-1789.65,0.00044268,2]
[392474569,1761535837484,-558.33,0.00044268,120]
[392474570,1761535837494,-1789.65,0.00044268,2]
[392474571,1761535837504,-558.33,0.00044268,120]
[392474572,1761535837516,-1789.65,0.00044268,2]
[392474573,1761535837646,-558.33,0.00044268,120]
[392474574,1761535837657,-1789.65,0.00044268,2]
[392474575,1761535837669,-558.33,0.00044268,120]
[392474576,1761535837679,-1789.65,0.00044268,2]
[392474577,1761535837689,-558.33,0.00044268,120]
[392474578,1761535837702,-1789.65,0.00044268,2]
[392474579,1761535837712,-558.33,0.00044268,120]
[392474580,1761535837721,-1789.65,0.00044268,2]
[392474581,1761535837731,-558.33,0.00044268,120]
[392474582,1761535837742,-1789.65,0.00044268,2]
[392474583,1761535837752,-558.33,0.00044268,120]
[392474584,1761535837763,-1789.65,0.00044268,2]
[392474585,1761535837773,-558.33,0.00044268,120]
[392474586,1761535837784,-1789.65,0.00044268,2]
[392474587,1761535837795,-558.33,0.00044268,120]
[392474588,1761535837806,-1789.7089865,0.00044268,2]
[392474589,1761535837818,-558.33,0.00044268,120]
[392474590,1761535837829,-558.33,0.00044268,120]
[392474591,1761535837839,-558.33,0.00044268,120]
[392474592,1761535837850,-558.33,0.00044268,120]
[392474593,1761535837867,-558.33,0.00044268,120]
[392474594,1761535837876,-558.33,0.00044268,120]
[392474595,1761535837886,-558.33,0.00044268,120]
[392474596,1761535837896,-558.33,0.00044268,120]
[392474597,1761535837905,-558.33,0.00044268,120]
[392474598,1761535837915,-558.41,0.00044268,120]
[392474599,1761535837925,-500.0,0.00044268,120]
[392474600,1761535837935,-500.0,0.00044268,120]
[392474601,1761535837946,-500.0,0.00044268,120]
[392474602,1761535837955,-302.8359982,0.00044268,120]
[392474603,1761535837965,-500.0,0.00044268,120]
[392474604,1761535837975,-500.0,0.00044268,120]
[392474606,1761535837985,-500.0,0.00044268,120]
[392474608,1761535837995,-500.0,0.00044268,120]
[392474609,1761535838004,-500.0,0.00044268,120]
[392474610,1761535838014,-500.0,0.00044268,120]
[392474611,1761535838023,-221.93603767,0.00044268,120]
[392474612,1761535838033,-696.43,0.00044268,120]
[392474613,1761535838043,-696.43,0.00044268,120]
[392474614,1761535838052,-696.43,0.00044268,120]
[392474615,1761535838062,-696.43,0.00044268,120]
[392474616,1761535838072,-696.43,0.00044268,120]
[392474617,1761535838081,-696.43,0.00044268,120]
[392474618,1761535838091,-696.43,0.00044268,120]
[392474619,1761535838101,-696.43,0.00044268,120]
[392474620,1761535838111,-696.43,0.00044268,120]
[392474622,1761535838123,-696.43,0.00044268,120]
[392474623,1761535838133,-696.43,0.00044268,120]
[392474624,1761535838143,-696.43,0.00044268,120]
[392474625,1761535838154,-696.43,0.00044268,120]
[392474626,1761535838164,-696.43,0.00044268,120]
[392474627,1761535838175,-696.43,0.00044268,120]
[392474628,1761535838184,-696.43,0.00044268,120]
[392474629,1761535838195,-696.43,0.00044268,120]
[392474630,1761535838204,-696.43,0.00044268,120]
[392474631,1761535838214,-696.43,0.00044268,120]
[392474632,1761535838223,-696.43,0.00044268,120]
[392474633,1761535838232,-696.43,0.00044268,120]
[392474634,1761535838242,-647.36848449,0.00044268,120]
[392474635,1761535838309,-49.27458107,0.00044268,120]
[392474636,1761535838319,-420.55605172,0.00044268,30]
[392474637,1761535838328,-27752.62881372,0.00044269,120]
[392474638,1761535838339,-29979.36828472,0.00044269,120]
[392474639,1761535838350,-759.80301203,0.00044269,120]
[392474640,1761535838362,-704.0,0.00044269,120]
[392474641,1761535838374,-467.28,0.00044269,120]
[392474682,1761535839823,-2050.0,0.00043987,2]
[392474683,1761535839833,-360031.4700534,0.00044269,120]
[392474686,1761535840326,-500.0,0.00044258,120]
[392474687,1761535840337,-500.0,0.00044258,120]
[392474688,1761535840347,-147.7419789,0.00044269,120]
[392474689,1761535840357,-1237.92084838,0.00044269,120]
[392474690,1761535840370,-723.23545005,0.00044269,120]
[392474691,1761535840648,-500.0,0.00044267,120]
[392474692,1761535840658,-432765.29596563,0.00044269,120]
[392474698,1761535843500,-1445.66569149,0.00043269,50]
[392474699,1761535843511,-500.0,0.00043835,2]
[392474700,1761535843522,-500.0,0.00044268,120]
[392474701,1761535843532,-409.89762177,0.00044268,120]
[392474702,1761535843544,-90.10237823,0.00044268,120]
[392474703,1761535843553,-500.0,0.00044268,120]
[392474704,1761535843562,-500.0,0.00044268,120]
[392474705,1761535843571,-500.0,0.00044268,120]
[392474706,1761535843581,-500.0,0.00044268,120]
[392474707,1761535843590,-500.0,0.00044268,120]
[392474708,1761535843600,-500.0,0.00044268,120]
[392474709,1761535843609,-500.0,0.00044268,120]
[392474710,1761535843617,-500.0,0.00044268,120]
[392474711,1761535843626,-500.0,0.00044268,120]
[392474712,1761535843636,-3781.38577987,0.00044269,120]
[392474713,1761535843647,-1421.78323689,0.00044269,120]
[392474714,1761535843658,-1008.52999998,0.00044269,120]
[392474715,1761535843668,-1698.81905439,0.00044269,120]
[392474716,1761535843693,-150.0,0.00044268,120]
[392474722,1761535846582,-350.0,0.00044268,120]
[392474723,1761535846591,-150.5500002,0.00044268,120]
[392474744,1761536545619,-150.0,0.00029852,2]
[392474745,1761536545644,-17.49158763,0.00029852,2]
[392474752,1761536744099,-156.50841237,0.00029852,2]
[392474753,1761536744124,-195.0,0.00032837,120]
[392474754,1761536744146,-182.73312672,0.000335,2]
[392474755,1761536760126,314.1,0.000315,120]
[392474756,1761536800086,-420.90855864,0.00033,120]
[392474759,1761536834092,-579.09144136,0.00033,120]
[392474760,1761536834118,-295.83098319,0.00038851,28]
[392474763,1761536847097,-204.16901681,0.00038851,28]
[392474764,1761536847118,-168.38036015,0.00039722,2]
[392474765,1761536847138,-300.0,0.00039821,5]
[392474766,1761536847158,-89.02082472,0.00039822,4]
[392474767,1761536850133,-60.97917528,0.00039822,4]
[392474768,1761536850159,-150.0,0.00039822,4]
[392474769,1761536850185,-150.0,0.00039822,4]
[392474770,1761536850204,-152.22718871,0.00039822,4]
[392474771,1761536850225,-152.18926861,0.00039822,4]
[392474772,1761536850246,-158.66111158,0.00039822,4]
[392474773,1761536850270,-166.06212231,0.00039822,4]
[392474774,1761536850291,-155.10455661,0.00039822,4]
[392474775,1761536850311,-286.65334943,0.00039822,4]
[392474776,1761536850331,-152.848161,0.00039822,4]
[392474777,1761536850350,-151.25982263,0.00039822,4]
[392474778,1761536850373,-152.82651008,0.00039822,4]
[392474779,1761536850394,-150.0,0.00039822,4]
[392474780,1761536850414,-153.73969324,0.00039822,4]
[392474781,1761536850434,-155.31439502,0.00039822,4]
[392474782,1761536850452,-464.82445996,0.000399,5]
[392474784,1761536887331,307.20520773,0.00038856,50]
[392474787,1761536944628,1030.35,0.00031507,120]
[392474788,1761536951612,979.5545471,0.00038856,50]
[392474796,1761537031498,-153.0,0.00038023,90]
[392474797,1761537031507,-153.0,0.00038025,90]
[392474798,1761537031517,-300.28713673,0.0004,30]
[392474799,1761537031526,-264.68807663,0.00041032,2]
[392474800,1761537031604,-231.31192337,0.00041032,2]
[392474801,1761537031614,-187.8396224,0.00041574,2]
[392474802,1761537031625,-309.0,0.0004159,2]
[392474803,1761537031634,-1769.32902772,0.000416,2]
[392474804,1761537031643,-300.0,0.00041673,5]
[392474805,1761537031652,-1257.0,0.00041673,5]
[392474806,1761537031662,-150.0,0.00041674,7]
[392474807,1761537031671,-9999.99,0.00041674,2]
[392474808,1761537031680,-496.0,0.00041677,7]
[392474809,1761537031690,-500.0,0.00041775,10]
[392474810,1761537031699,-502.72287121,0.00041775,10]
[392474811,1761537031708,-500.0,0.00041775,10]
[392474812,1761537031717,-500.0,0.00041775,2]
[392474813,1761537031726,-335.2763987,0.00041975,2]
[392474814,1761537031735,-309.0,0.00042214,7]
[392474815,1761537031752,-510.92011121,0.00042323,10]
[392474817,1761537031764,-502.18229381,0.00042323,2]
[392474819,1761537031774,-309.0,0.00042378,2]
[392474821,1761537031785,-172.41,0.00042619,2]
[392474823,1761537031801,-209.04,0.00042625,2]
[392474825,1761537031812,-2705.44,0.00042637,2]
[392474826,1761537031828,-1000.0,0.00042712,2]
[392474828,1761537031838,-320.0,0.00042799,120]
[392474830,1761537031847,-320.0,0.00042813,7]
[392474832,1761537031856,-282.88,0.0004282,2]
[392474834,1761537031866,-155.7,0.00042838,120]
[392474835,1761537031876,-427.64781572,0.0004303,2]
[392474836,1761537031885,-250.0,0.0004321,120]
[392474837,1761537031895,-150.0,0.00043297,2]
[392474838,1761537031904,-518.66779514,0.00043322,31]
[392474840,1761537031914,-3448.40733762,0.00043323,120]
[392474842,1761537031926,-1012.17131837,0.00043323,120]
[392474843,1761537037593,-3410.15134401,0.00043323,120]
[392474844,1761537037604,-500.0,0.00043356,60]
[392474845,1761537037613,-500.0,0.00043356,60]
[392474846,1761537037622,-624.95307713,0.00043613,120]
[392474847,1761537037632,-810.174611,0.00043735,2]
[392474848,1761537037642,-1014.0,0.000438,7]
[392474849,1761537037651,-640.36633,0.0004383,20]
[392474850,1761537037660,-186.839,0.00043834,68]
[392474852,1761537037670,-163.6957568,0.00043835,120]
[392474854,1761537037679,-3364.43618876,0.00043835,14]
[392474926,1761537039495,-646.3750532,0.00043835,14]
[392474927,1761537039505,-500.0,0.00043835,120]
[392474928,1761537039514,-500.0,0.00043835,120]
[392474929,1761537039524,-500.0,0.00043835,120]
[392474930,1761537039533,-500.0,0.00043835,120]
[392474931,1761537039543,-500.0,0.00043835,120]
[392474932,1761537039551,-500.0,0.00043835,120]
[392474933,1761537039561,-292.32,0.00043835,120]
[392474934,1761537039570,-349.09507637,0.000439,120]
[392474935,1761537039579,-500.0,0.00044007,2]
[392474936,1761537039589,-263.32871446,0.00044007,5]
[392474937,1761537039598,-810.1746111,0.00044049,2]
[392474938,1761537039608,-166.862889,0.00044099,50]
[392474939,1761537039617,-195.570356,0.00044099,50]
[392474940,1761537039627,-316.0,0.00044125,2]
[392474941,1761537039637,-596.11,0.00044151,30]
[392474942,1761537039647,-927.00439451,0.00044159,3]
[392474943,1761537039656,-164.55055547,0.00044169,14]
[392474944,1761537039666,-821.58633592,0.00044169,16]
[392474945,1761537039680,-1000.0,0.00044169,2]
[392474946,1761537039690,-5000.0,0.00044169,120]
[392474947,1761537039700,-151.0,0.00044172,2]
[392474948,1761537039710,-254.151,0.00044199,2]
[392474949,1761537039719,-574.872,0.00044199,2]
[392474950,1761537039729,-2067.447,0.00044199,2]
[392474951,1761537039739,-606.0,0.00044199,2]
[392474952,1761537039749,-1313.0,0.00044199,2]
[392474953,1761537039758,-818.0,0.00044199,2]
[392474954,1761537039768,-1270.0,0.00044199,2]
[392474955,1761537039777,-1453.613,0.00044199,2]
[392474956,1761537039786,-150.0,0.00044199,2]
[392474957,1761537039796,-558.0,0.00044199,2]
[392474958,1761537039806,-3488.0,0.00044199,2]
[392474959,1761537039815,-513.79682564,0.00044212,10]
[392474960,1761537039825,-154.10041929,0.00044225,120]
[392474961,1761537039834,-177.0,0.00044247,120]
[392474962,1761537039844,-36954.632332,0.00044249,3]